bitfinex-derivatives/quotes_SOLF0:USTF0_20250830
["timestamp","ask_amount","ask_price","bid_price","bid_amount"]
[1756540517094,13.49823942,205.39,205.38,0.03427211]
[1756540517294,134.23823942,205.39,205.38,0.03427211]
[1756540521096,13.49823942,205.39,205.38,0.03427211]
[1756540521298,67.97823942,205.39,205.38,0.03427211]
[1756540521495,67.97681605,205.39,205.38,0.03427211]
[1756540522401,13.49681605,205.39,205.38,0.03427211]
[1756540522599,119.73681605,205.39,205.38,0.03427211]
[1756540523899,119.73681605,205.39,205.27,7.75]
[1756540524100,7.52,205.37,205.27,7.75]
[1756540524299,5.97681605,205.36,205.27,7.75]
[1756540524496,5.97681605,205.35,205.27,7.75]
[1756540524795,2.56054124,205.34,205.33,7.75]
[1756540524994,2.55984011,205.34,205.33,7.75]
[1756540525998,2.55955278,205.34,205.33,7.75]
[1756540527195,2.55955278,205.34,205.3,7.75]
[1756540527400,10.07955278,205.33,205.3,7.75]
[1756540527600,2.55955278,205.32,205.3,7.75]
[1756540527801,7.52,205.33,205.3,7.75]
[1756540528002,2.55912807,205.32,205.3,7.75]
[1756540528298,7.52,205.33,205.3,7.75]
[1756540528494,2.55886781,205.32,205.3,7.75]
[1756540528694,7.52,205.33,205.3,7.75]
[1756540528901,2.55886781,205.32,205.3,7.75]
[1756540529101,7.52,205.33,205.3,7.75]
[1756540529401,2.5586261,205.32,205.3,7.75]
[1756540529600,7.52,205.33,205.3,7.75]
[1756540529799,2.55856796,205.32,205.3,7.75]
[1756540530001,120.7,205.35,205.3,7.75]
[1756540530198,2.55857427,205.34,205.29,4.3834]
[1756540530500,2.55857427,205.33,205.27,7.75]
[1756540530701,2.55857427,205.32,205.27,7.75]
[1756540530900,120.7,205.35,205.27,7.75]
[1756540531100,2.55843292,205.34,205.27,7.75]
[1756540531299,2.55843292,205.33,205.27,7.75]
[1756540531499,2.55843292,205.32,205.27,7.75]
[1756540531701,128.22,205.35,205.31,7.75]
[1756540531898,2.5582855,205.34,205.31,7.75]
[1756540532098,2.5582855,205.33,205.31,7.75]
[1756540532301,2.5582855,205.32,205.31,7.75]
[1756540535802,2.55711875,205.32,205.31,7.75]
[1756540538900,2.55539816,205.32,205.31,7.75]
[1756540546408,2.55502864,205.32,205.29,1.83461213]
[1756540546612,120.64,205.35,205.3,7.87]
[1756540546910,7.47,205.33,205.3,7.87]
[1756540547210,2.55496638,205.32,205.3,7.87]
[1756540547503,7.47,205.33,205.3,7.87]
[1756540547804,10.02477352,205.32,205.3,7.87]
[1756540548009,2.55477352,205.31,205.3,7.87]
[1756540548710,7.47,205.32,205.3,7.87]
[1756540548906,7.47,205.32,205.29,0.03080779]
[1756540548907,7.47,205.31,205.29,0.03080779]
[1756540549612,1.80380434,205.32,205.29,0.03080779]
[1756540549811,7.47,205.3,205.29,0.03080779]
[1756540550007,135.8633053,205.3,205.29,0.03080779]
[1756540550913,15.2433053,205.3,205.29,0.03080779]
[1756540551306,50.56008578,205.3,205.29,0.03080779]
[1756540553613,53.8606706,205.3,205.14,7.87]
[1756540553816,7.47,205.23,205.14,7.87]
[1756540554015,2.55340045,205.22,205.14,7.87]
[1756540554313,2.55340045,205.21,205.14,7.87]
[1756540554617,7.47,205.23,205.14,7.87]
[1756540554809,2.55038208,205.22,205.14,7.87]
[1756540555016,0.03279138,205.2,205.14,7.87]
[1756540555714,0.03279138,205.2,205.16,4.3863]
[1756540556417,0.03279138,205.2,205.14,7.87]
[1756540557210,0.03279138,205.2,205.16,7.87]
[1756540557514,0.03279138,205.2,205.15,4.3866]
[1756540558110,0.03279138,205.2,205.16,7.87]
[1756540558716,0.03279138,205.2,205.15,4.3866]
[1756540559719,0.03279138,205.2,205.14,7.87]
[1756540560321,7.50279138,205.2,205.14,7.87]
[1756540560617,0.03279138,205.2,205.16,2.82058482]
[1756540560820,0.03279138,205.2,205.17,7.87]
[1756540561120,7.47,205.25,205.17,7.87]
[1756540561320,0.03368683,205.21,205.17,7.87]
[1756540562422,0.03368683,205.21,205.12,4.3871]
[1756540562615,0.03368683,205.21,205.16,7.87]
[1756540563120,0.03368683,205.21,205.15,2.82058482]
[1756540563719,0.03368683,205.21,205.15,10.69058482]
[1756540564020,0.03368683,205.21,205.15,7.87]
[1756540564414,0.03368683,205.21,205.13,7.87]
[1756540564614,0.03368683,205.21,205.16,7.87]
[1756540565020,0.03368683,205.21,205.15,2.82058482]
[1756540565218,0.03368683,205.21,205.16,7.87]
[1756540566722,0.03368683,205.21,205.15,7.20708482]
[1756540567514,0.03368683,205.21,205.16,7.39]
[1756540571426,0.03368683,205.21,205.18,7.39]
[1756540572521,0.03368683,205.21,205.17,4.3862]
[1756540572922,0.03368683,205.21,205.18,7.39]
[1756540573119,0.03368683,205.21,205.15,2.82058482]
[1756540573626,0.03368683,205.21,205.16,7.39]
[1756540574534,0.03368683,205.21,205.15,2.82058482]
[1756540574724,0.03368683,205.21,205.16,7.39]
[1756540575133,0.03368683,205.21,205.15,2.82058482]
[1756540575431,0.03368683,205.21,205.16,7.39]
[1756540575627,0.03368683,205.21,205.15,2.82058482]
[1756540577422,0.03368683,205.21,205.16,2.82058482]
[1756540577826,0.03368683,205.21,205.17,7.39]
[1756540578130,0.03368683,205.21,205.15,7.39]
[1756540578330,2.54375307,205.2,205.15,7.39]
[1756540578632,7.55,205.18,205.15,7.39]
[1756540579239,0.03368683,205.21,205.14,7.39]
[1756540579630,7.55,205.23,205.14,7.39]
[1756540579828,2.54344415,205.22,205.14,7.39]
[1756540580028,0.03719815,205.2,205.14,7.39]
[1756540580728,0.03719815,205.2,205.14,11.7768]
[1756540580934,0.03719815,205.2,205.14,4.3868]
[1756540581134,0.03719815,205.2,205.15,7.39]
[1756540581531,0.03719815,205.2,205.14,4.3868]
[1756540582133,0.03719815,205.2,205.15,7.39]
[1756540582327,0.03719815,205.2,205.14,4.3868]
[1756540583037,0.03719815,205.2,205.15,7.39]
[1756540583239,0.03719815,205.2,205.14,4.3868]
[1756540583733,0.03719815,205.2,205.15,7.39]
[1756540583939,0.03719815,205.2,205.14,4.3868]
[1756540584340,0.03719815,205.2,205.14,7.39]
[1756540584535,7.55,205.19,205.14,7.39]
[1756540584741,0.03719815,205.2,205.14,7.39]
[1756540584939,7.55,205.19,205.14,7.39]
[1756540585539,7.58719815,205.2,205.14,7.39]
[1756540588245,2.55025017,205.19,205.13,2.82058482]
[1756540588543,0.03719815,205.2,205.14,7.39]
[1756540588739,2.55028125,205.19,205.14,7.39]
[1756540588944,0.03719815,205.2,205.14,7.39]
[1756540589143,2.55033627,205.19,205.14,7.39]
[1756540589344,0.03719815,205.2,205.14,7.39]
[1756540589536,2.55140421,205.19,205.13,2.82058482]
[1756540589742,0.03719815,205.2,205.14,7.39]
[1756540589942,2.55140421,205.19,205.13,2.82058482]
[1756540590139,0.03719815,205.2,205.14,7.39]
[1756540590340,2.55262622,205.19,205.13,2.82058482]
[1756540590542,0.03719815,205.2,205.14,7.39]
[1756540590843,2.55266309,205.19,205.14,7.39]
[1756540591037,2.55266309,205.18,205.14,7.39]
[1756540591237,7.55,205.16,205.14,7.39]
[1756540592343,2.55540242,205.15,205.14,7.39]
[1756540592542,13.52475885,205.15,205.06,7.39]
[1756540592844,5.37598724,205.14,205.06,7.39]
[1756540593043,2.55540242,205.13,205.06,7.39]
[1756540593247,2.55540242,205.12,205.06,7.39]
[1756540593444,2.55540242,205.11,205.06,7.39]
[1756540593645,0.0357153,205.13,205.06,7.39]
[1756540593846,2.55461542,205.12,205.06,7.39]
[1756540594044,2.55461542,205.11,205.05,4.3886]
[1756540594249,0.0357153,205.13,205.06,7.39]
[1756540594444,2.55462959,205.12,205.06,7.39]
[1756540594643,2.55462959,205.11,205.06,7.39]
[1756540594844,7.5857153,205.13,205.06,7.39]
[1756540595145,2.55462881,205.12,205.06,7.39]
[1756540595347,7.55,205.1,205.06,7.39]
[1756540595542,0.0357153,205.13,205.06,7.39]
[1756540595846,2.55392424,205.12,205.06,7.39]
[1756540596048,2.55392424,205.12,205.02,2.82058482]
[1756540596049,2.55392424,205.11,205.03,7.39]
[1756540596339,0.0357153,205.13,205.03,7.39]
[1756540596541,2.55340279,205.12,205.03,7.39]
[1756540596741,2.55340279,205.11,205.05,4.3887]
[1756540596942,0.0357153,205.13,205.06,7.39]
[1756540597146,2.55340279,205.12,205.06,7.39]
[1756540597349,2.55340279,205.11,205.05,4.3887]
[1756540597548,0.0357153,205.13,205.06,7.49]
[1756540597748,2.55306004,205.12,205.06,7.49]
[1756540597945,2.55306004,205.11,205.06,7.49]
[1756540598139,0.0357153,205.13,205.06,7.49]
[1756540598340,2.55343102,205.12,205.06,7.49]
[1756540598544,2.55343102,205.11,205.05,4.3887]
[1756540598746,0.0357153,205.13,205.06,7.49]
[1756540599050,2.55282123,205.12,205.06,7.49]
[1756540599345,2.55282123,205.11,205.05,4.3887]
[1756540599551,0.0357153,205.13,205.06,7.49]
[1756540599750,2.55214202,205.12,205.06,7.49]
[1756540599944,2.55214202,205.11,205.05,4.3887]
[1756540600145,0.0357153,205.13,205.06,7.49]
[1756540600347,2.55208047,205.12,205.06,7.49]
[1756540600547,2.55208047,205.11,205.06,7.49]
[1756540600747,0.0357153,205.13,205.06,7.49]
[1756540600948,2.55175648,205.12,205.06,7.49]
[1756540601147,0.0357153,205.13,205.06,7.49]
[1756540601342,2.55164262,205.12,205.06,7.49]
[1756540601547,0.0357153,205.13,205.06,7.49]
[1756540601747,2.55126936,205.12,205.06,7.49]
[1756540601946,0.0357153,205.13,205.06,7.49]
[1756540602250,2.55126974,205.12,205.06,7.49]
[1756540602452,0.0357153,205.13,205.06,7.49]
[1756540602654,2.55079685,205.12,205.06,7.49]
[1756540602952,0.0357153,205.13,205.06,7.49]
[1756540603154,2.55085348,205.12,205.06,7.49]
[1756540603354,0.0357153,205.13,205.06,7.49]
[1756540603555,2.55046735,205.12,205.06,7.49]
[1756540603757,0.0357153,205.13,205.06,7.49]
[1756540603956,2.55046735,205.12,205.06,7.49]
[1756540604152,0.0357153,205.13,205.06,7.49]
[1756540604353,2.55038451,205.12,205.06,7.49]
[1756540604552,0.0357153,205.13,205.06,7.49]
[1756540604753,2.55015076,205.12,205.06,7.49]
[1756540605054,0.0357153,205.13,205.06,7.49]
[1756540605255,2.55015037,205.12,205.06,7.49]
[1756540605454,0.0357153,205.13,205.06,7.49]
[1756540605654,2.54995409,205.12,205.06,7.49]
[1756540605855,0.0357153,205.13,205.06,7.49]
[1756540606056,2.54995448,205.12,205.06,7.49]
[1756540606256,0.0357153,205.13,205.06,7.49]
[1756540606558,2.54973389,205.12,205.06,7.49]
[1756540606757,0.0357153,205.13,205.06,7.49]
[1756540606954,2.54971589,205.12,205.06,7.49]
[1756540607156,0.0357153,205.13,205.06,7.49]
[1756540607461,7.29,205.09,205.03,7.49]
[1756540608154,0.03737497,205.08,205.0,2.82058482]
[1756540608361,0.03737497,205.08,205.01,7.49]
[1756540608758,0.03737497,205.08,205.02,7.49]
[1756540609657,0.03737497,205.08,205.04,7.49]
[1756540610361,0.03737497,205.08,205.03,4.3891]
[1756540610956,0.03737497,205.08,205.04,7.49]
[1756540611361,0.03737497,205.08,205.03,4.3891]
[1756540611562,0.03737497,205.08,205.04,7.49]
[1756540611859,0.03737497,205.08,205.07,7.49]
[1756540621564,0.03737497,205.08,205.02,26.47]
[1756540622770,2.55325104,205.07,205.04,7.49]
[1756540622972,7.32737497,205.08,205.04,7.49]
[1756540623768,7.32737497,205.08,205.03,7.49]
[1756540624168,0.03737497,205.08,205.04,2.82058482]
[1756540624473,0.03737497,205.08,205.05,7.49]
[1756540624668,7.29,205.16,205.05,7.49]
[1756540624871,0.03585314,205.09,205.07,2.82058482]
[1756540625166,0.03585314,205.09,205.08,7.49]
[1756540625371,7.29,205.16,205.08,7.49]
[1756540625568,0.03205485,205.1,205.08,11.8779]
[1756540625769,0.03205485,205.1,205.09,7.49]
[1756540629176,7.29,205.2,205.12,7.87]
[1756540629377,5.94607394,205.19,205.12,7.87]
[1756540629579,2.55209391,205.18,205.12,7.87]
[1756540629768,2.55209391,205.17,205.11,7.20798482]
[1756540630078,7.81,205.19,205.12,7.87]
[1756540630377,2.55274819,205.18,205.12,7.87]
[1756540630570,2.55318408,205.17,205.12,7.87]
[1756540630775,2.55318408,205.16,205.11,7.20798482]
[1756540630972,7.81,205.19,205.12,7.87]
[1756540631166,2.55307039,205.18,205.12,7.87]
[1756540631371,2.55307039,205.17,205.11,7.23895699]
[1756540631568,2.55307039,205.16,205.12,7.87]
[1756540631876,7.81,205.19,205.12,7.87]
[1756540632065,2.55320937,205.18,205.12,7.87]
[1756540632265,2.55320937,205.17,205.11,7.87]
[1756540632470,7.81,205.15,205.08,7.87]
[1756540632668,2.55320937,205.14,205.08,7.87]
[1756540632878,2.55320937,205.13,205.07,7.87]
[1756540633077,7.81,205.15,205.07,7.87]
[1756540633276,10.36309116,205.14,205.1,7.87]
[1756540633476,2.55309116,205.13,205.1,7.87]
[1756540633674,2.55309116,205.13,205.09,0.03167436]
[1756540633974,2.55309116,205.13,205.1,7.87]
[1756540634476,2.55309116,205.12,205.1,7.87]
[1756540634676,7.81,205.19,205.1,7.87]
[1756540634873,7.81,205.17,205.1,7.87]
[1756540635078,5.95110846,205.16,205.1,7.87]
[1756540635277,7.81,205.14,205.1,7.87]
[1756540635476,2.55448361,205.13,205.1,7.87]
[1756540635671,2.55448361,205.12,205.1,7.87]
[1756540635871,7.81,205.14,205.1,7.87]
[1756540636070,2.55515552,205.13,205.1,7.87]
[1756540636271,7.81,205.11,205.09,0.03167436]
[1756540636481,13.76223175,205.1,205.09,0.03167436]
[1756540636978,14.24223175,205.1,205.09,0.03167436]
[1756540637175,14.24223175,205.1,204.97,7.87]
[1756540637375,5.42187237,205.15,204.97,7.87]
[1756540637376,7.81,205.06,204.97,7.87]
[1756540637570,5.95223175,205.05,204.97,7.87]
[1756540637774,2.55515552,205.04,205.0,7.87]
[1756540637968,2.55515552,205.03,205.0,7.87]
[1756540638170,2.55515552,205.02,205.0,7.87]
[1756540638379,0.03691135,205.04,205.0,7.87]
[1756540638578,2.55165865,205.03,205.0,7.87]
[1756540638779,2.55165865,205.02,205.0,7.87]
[1756540638985,0.03691135,205.04,205.0,7.87]
[1756540639185,2.5516581,205.03,205.0,7.87]
[1756540639386,2.5516581,205.02,205.0,7.87]
[1756540639586,0.03691135,205.04,205.0,7.87]
[1756540639885,2.55055234,205.03,205.0,7.87]
[1756540640080,2.55055234,205.02,205.0,7.87]
[1756540640281,0.03691135,205.04,205.0,7.87]
[1756540640582,2.54960352,205.03,204.99,4.39]
[1756540640784,2.54960406,205.02,205.0,7.87]
[1756540640984,0.03691135,205.04,205.0,7.87]
[1756540641186,2.54959825,205.03,205.0,7.87]
[1756540641377,7.84691135,205.04,205.0,7.87]
[1756540641581,2.54873175,205.03,205.0,7.87]
[1756540641778,2.54848672,205.02,205.0,7.87]
[1756540641984,7.84691135,205.04,205.0,7.87]
[1756540642185,2.54848672,205.03,205.0,7.87]
[1756540642388,7.84691135,205.04,205.0,7.87]
[1756540642588,2.54750062,205.03,205.0,7.87]
[1756540642789,7.84691135,205.04,205.0,7.87]
[1756540642988,10.35875639,205.03,204.96,7.87]
[1756540643186,2.54875639,205.02,204.96,7.87]
[1756540643386,10.63058482,205.03,204.96,7.87]
[1756540643585,2.54778499,205.02,204.96,7.87]
[1756540643788,10.63058482,205.03,204.96,7.87]
[1756540643984,2.54778499,205.02,204.96,7.87]
[1756540644183,10.63058482,205.03,204.96,7.87]
[1756540644388,2.54777863,205.02,204.96,7.87]
[1756540644586,10.63058482,205.03,204.96,7.87]
[1756540644788,2.54696641,205.02,204.96,7.87]
[1756540644989,2.54686898,205.01,204.94,7.87]
[1756540645190,7.81,205.03,204.94,7.87]
[1756540645490,2.54617438,205.02,204.95,4.3909]
[1756540645686,0.03529373,205.01,204.96,7.87]
[1756540646086,7.81,205.11,204.99,7.87]
[1756540646290,7.81,205.11,204.92,2.82058482]
[1756540646291,2.54755379,205.1,205.02,7.87]
[1756540646487,2.54755379,205.09,205.02,7.87]
[1756540646687,2.54755379,205.08,205.02,7.87]
[1756540646891,2.54787035,205.07,205.01,7.87]
[1756540647089,7.81,205.11,205.01,7.87]
[1756540647290,2.54786981,205.1,205.02,7.87]
[1756540647490,2.54786981,205.09,205.02,7.87]
[1756540647690,2.54786981,205.08,205.03,4.3892]
[1756540647887,7.81,205.11,205.04,0.03480462]
[1756540648088,2.54778645,205.1,205.04,0.03480462]
[1756540648291,10.35778645,205.09,205.05,7.87]
[1756540648488,2.54778645,205.08,205.05,7.87]
[1756540651482,7.81,205.09,205.05,7.87]
[1756540651692,2.54883561,205.08,205.05,7.87]
[1756540651892,7.81,205.09,205.05,7.87]
[1756540652090,2.54914473,205.08,205.05,7.87]
[1756540652290,7.81,205.09,205.05,7.87]
[1756540652491,2.54914336,205.08,205.05,7.87]
[1756540652693,7.81,205.09,205.05,7.87]
[1756540652894,2.54914336,205.08,205.05,7.87]
[1756540653195,7.81,205.09,205.05,7.87]
[1756540653386,2.54987708,205.08,205.04,0.03480462]
[1756540653585,7.81,205.09,205.05,7.87]
[1756540653791,2.54967622,205.08,205.05,7.87]
[1756540653993,7.81,205.09,205.05,7.87]
[1756540654193,2.54967622,205.08,205.05,7.87]
[1756540654389,7.81,205.09,205.05,7.87]
[1756540654591,2.54975159,205.08,205.05,7.87]
[1756540654891,7.81,205.09,205.05,7.87]
[1756540655093,2.54975159,205.08,205.05,7.87]
[1756540655392,7.81,205.09,205.05,7.87]
[1756540655592,2.54972852,205.08,205.05,7.87]
[1756540655792,7.81,205.09,205.05,7.87]
[1756540655992,2.54972852,205.08,205.05,7.87]
[1756540656192,7.81,205.09,205.05,7.87]
[1756540656494,7.81,205.07,205.04,0.03480462]
[1756540656693,2.54999157,205.06,205.04,0.03480462]
[1756540657093,9.70999157,205.06,205.04,0.03480462]
[1756540657294,7.16,205.06,205.04,0.03480462]
[1756540660294,2.82058482,205.09,205.04,0.03480462]
[1756540660496,2.55000978,205.08,205.04,0.03480462]
[1756540660696,7.16,205.06,205.04,0.03480462]
[1756540660897,2.82058482,205.09,205.04,0.03480462]
[1756540661097,7.16,205.07,205.04,0.03480462]
[1756540661398,7.16,205.05,205.04,0.03480462]
[1756540672114,9.71158064,205.05,205.04,0.03480462]
[1756540672617,9.71213425,205.05,205.04,0.03480462]
[1756540673220,9.71225533,205.05,205.04,0.03480462]
[1756540675723,2.55225533,205.05,205.04,0.03480462]
[1756540676525,9.71225533,205.05,205.04,0.03480462]
[1756540681532,2.55225533,205.05,205.04,7.62480462]
[1756540682223,2.02432035,205.05,205.04,12.01380462]
[1756540682428,7.16,205.12,205.05,7.59]
[1756540682629,3.41838444,205.11,205.05,7.59]
[1756540682928,7.16,205.12,205.07,7.59]
[1756540683132,3.41797287,205.11,205.06,4.3885]
[1756540683332,7.16,205.17,205.08,4.3881]
[1756540683527,7.16,205.15,205.08,4.3881]
[1756540683832,3.41693455,205.14,205.08,4.3881]
[1756540684034,7.16,205.13,205.09,7.62625793]
[1756540684735,7.16,205.13,205.09,0.03625793]
[1756540684929,7.16,205.12,205.09,7.62625793]
[1756540685227,7.16,205.17,205.09,0.03625793]
[1756540685429,3.41396204,205.16,205.09,0.03625793]
[1756540685627,3.41396204,205.15,205.09,0.03625793]
[1756540685824,7.16,205.17,205.09,0.03625793]
[1756540686024,3.41512239,205.16,205.09,0.03625793]
[1756540686228,7.16,205.17,205.1,7.59]
[1756540686631,7.16,205.23,205.11,7.59]
[1756540686937,7.18,205.2,205.11,7.59]
[1756540687136,3.41408165,205.19,205.11,7.59]
[1756540687332,3.41408165,205.19,205.13,0.03276367]
[1756540687526,3.41408165,205.19,205.13,7.87276367]
[1756540687726,7.18,205.2,205.13,7.87276367]
[1756540688632,7.18,205.2,205.13,0.03276367]
[1756540688832,10.58939224,205.19,205.13,7.87276367]
[1756540689138,7.18,205.19,205.13,7.87276367]
[1756540698244,7.18,205.19,205.13,0.03276367]
[1756540698444,7.18,205.17,205.13,0.03276367]
[1756540698742,7.18,205.19,205.13,0.03276367]
[1756540699044,2.53141191,205.18,205.13,0.03276367]
[1756540699343,7.18,205.19,205.13,0.03276367]
[1756540699938,7.18,205.17,205.13,0.03276367]
[1756540700144,7.18,205.19,205.13,0.03276367]
[1756540700342,2.53095317,205.18,205.13,7.87276367]
[1756540700545,7.18,205.19,205.13,7.87276367]
[1756540700843,2.53088533,205.18,205.13,7.87276367]
[1756540701045,7.18,205.19,205.13,7.87276367]
[1756540701237,2.53099459,205.18,205.13,7.87276367]
[1756540701435,7.18,205.19,205.13,7.87276367]
[1756540701746,7.18,205.17,205.13,7.87276367]
[1756540701948,7.18,205.19,205.13,7.87276367]
[1756540702142,2.53076593,205.18,205.13,7.87276367]
[1756540702341,7.18,205.19,205.13,7.87276367]
[1756540702538,2.53040548,205.18,205.13,7.87276367]
[1756540702742,7.18,205.19,205.13,7.87276367]
[1756540702937,2.52975503,205.18,205.13,7.87276367]
[1756540703147,7.18,205.19,205.13,7.87276367]
[1756540703349,2.52775488,205.18,205.13,7.87276367]
[1756540703542,7.18,205.19,205.13,7.87276367]
[1756540703742,7.18,205.17,205.13,7.87276367]
[1756540704041,7.18,205.19,205.13,7.87276367]
[1756540704249,2.52780337,205.18,205.13,7.87276367]
[1756540704443,7.18,205.19,205.13,7.87276367]
[1756540704746,7.18,205.17,205.13,7.87276367]
[1756540704947,7.18,205.17,205.13,0.03276367]
[1756540705146,7.18,205.17,205.14,7.84]
[1756540709952,7.18,205.19,205.13,0.03276367]
[1756540710150,2.52636754,205.18,205.13,7.87276367]
[1756540710349,7.18,205.19,205.13,7.87276367]
[1756540710549,7.18,205.17,205.14,7.84]
[1756540710949,7.18,205.19,205.14,7.84]
[1756540711250,7.18,205.17,205.14,7.84]
[1756540711444,2.82058482,205.17,205.13,0.03276367]
[1756540712451,7.18,205.16,205.13,0.03276367]
[1756540713256,2.82058482,205.17,205.13,0.03276367]
[1756540713648,7.18,205.16,205.13,0.03276367]
[1756540714047,2.82058482,205.17,205.13,0.03276367]
[1756540714545,7.18,205.16,205.13,0.03276367]
[1756540714749,2.82058482,205.17,205.13,0.03276367]
[1756540715255,7.18,205.16,205.13,0.03276367]
[1756540715454,2.82058482,205.17,205.13,0.03276367]
[1756540715654,7.18,205.16,205.13,0.03276367]
[1756540715848,2.82058482,205.17,205.13,0.03276367]
[1756540716048,7.18,205.16,205.13,0.03276367]
[1756540716354,7.18,205.15,205.13,0.03276367]
[1756540717452,7.81,205.16,205.13,0.03276367]
[1756540717757,7.81,205.14,205.13,0.03276367]
[1756540718056,10.33990986,205.14,205.13,0.03276367]
[1756540720451,13.16049468,205.14,205.13,0.03276367]
[1756540721558,16.55539904,205.14,205.13,0.03276367]
[1756540722749,17.03539904,205.14,205.03,7.44]
[1756540722954,10.63058482,205.1,205.03,7.44]
[1756540723150,2.52990986,205.09,205.03,7.44]
[1756540723356,2.52990986,205.08,205.01,7.44]
[1756540723555,2.52990986,205.07,205.01,7.44]
[1756540723754,10.63058482,205.1,205.01,7.44]
[1756540723961,0.03419108,205.06,205.01,7.44]
[1756540725155,0.03419108,205.06,205.0,7.44]
[1756540731866,2.5300672,205.05,204.98,7.44]
[1756540732066,7.84419108,205.06,204.98,7.44]
[1756540739579,10.6647759,205.06,204.98,7.44]
[1756540739878,2.52797607,205.05,204.98,7.44]
[1756540740073,10.6647759,205.06,204.98,7.44]
[1756540740268,7.81,205.04,204.98,7.44]
[1756540741379,1.80929514,205.03,204.97,7.44]
[1756540742077,0.03607682,205.02,204.96,1.80929514]
[1756540742281,0.03607682,205.02,204.98,1.80929514]
[1756540742479,0.03607682,205.02,204.99,7.44]
[1756540743075,0.03607682,205.02,204.98,1.80929514]
[1756540744379,0.03607682,205.02,204.97,9.24929514]
[1756540757887,9.27929514,205.01,204.95,7.49]
[1756540758087,1.80929514,204.99,204.95,7.49]
[1756540760093,1.80929514,204.99,204.91,153.85177939]
[1756540760094,1.80929514,204.99,204.93,7.49]
[1756540760993,0.03377554,204.98,204.93,7.49]
[1756540761894,0.03377554,204.98,204.95,7.49]
[1756540762585,0.03377554,204.98,204.94,4.3911]
[1756540762889,0.03377554,204.98,204.95,7.49]
[1756540763090,0.03377554,204.98,204.97,9.29929514]
[1756540766093,0.03377554,204.98,204.97,7.49]
[1756540771296,5.42187237,205.15,204.98,7.49]
[1756540771495,1.80929514,205.09,205.02,7.49]
[1756540771802,10.00935618,205.08,205.04,7.49]
[1756540772102,2.53935618,205.07,205.04,7.49]
[1756540772293,2.53935618,205.06,205.04,7.49]
[1756540772498,7.47,205.08,205.04,7.49]
[1756540772699,2.41488238,205.07,205.04,7.49]
[1756540772890,2.41487755,205.06,205.04,7.49]
[1756540773097,7.47,205.08,205.04,7.49]
[1756540773399,2.41487755,205.07,205.04,7.49]
[1756540773599,2.41487755,205.06,205.04,7.49]
[1756540773800,7.47,205.08,205.04,7.49]
[1756540774001,7.47,205.08,205.03,0.03081274]
[1756540774002,2.41454866,205.07,205.03,0.03081274]
[1756540774202,2.41454866,205.06,205.04,7.49]
[1756540774502,7.47,205.08,205.04,7.49]
[1756540774799,2.41442288,205.07,205.04,7.49]
[1756540774995,2.41442288,205.07,205.03,0.03081274]
[1756540774996,7.47,205.05,205.03,0.03081274]
[1756540775201,7.47,205.08,205.03,0.03081274]
[1756540775389,2.41422367,205.07,205.03,0.03081274]
[1756540775597,9.88422367,205.06,205.0,7.49]
[1756540775900,2.41422367,205.05,205.03,0.03479435]
[1756540776092,7.47,205.08,205.03,0.03479435]
[1756540776298,2.4142187,205.07,205.03,0.03479435]
[1756540776499,7.47,205.05,205.03,0.03479435]
[1756540776698,2.41408363,205.04,205.03,0.03479435]
[1756540776898,9.88408363,205.04,205.03,0.03479435]
[1756540777401,10.36408363,205.04,205.03,0.03479435]
[1756540778903,9.88408363,205.04,205.03,0.03479435]
[1756540779403,9.88309989,205.04,205.03,0.03479435]